bitfinex/quotes_SOLUSD_20250307
["timestamp","ask_amount","ask_price","bid_price","bid_amount"]
[1741375710270,29.97051663,148.25,148.22,0.033]
[1741375710558,29.97051663,148.24,148.22,0.033]
[1741375711063,35.36641663,148.26,148.22,0.033]
[1741375711864,12.8811,148.27,148.23,29.97051663]
[1741375712045,12.8811,148.27,148.22,30.00351663]
[1741375713671,29.97051663,148.26,148.22,0.033]
[1741375714353,54.65431663,148.27,148.22,0.033]
[1741375714553,29.97051663,148.26,148.22,0.033]
[1741375714867,34.69221663,148.25,148.22,0.033]
[1741375715057,46.49651663,148.25,148.22,0.033]
[1741375715457,16.526,148.25,148.22,0.033]
[1741375715656,29.97051663,148.24,148.22,0.033]
[1741375716660,46.49651663,148.25,148.22,0.033]
[1741375717376,29.97051663,148.24,148.22,0.033]
[1741375717670,4.7217,148.25,148.22,0.033]
[1741375718054,29.97051663,148.24,148.22,0.033]
[1741375718655,29.97051663,148.23,148.22,0.033]
[1741375718962,34.69281663,148.23,148.22,0.033]
[1741375719267,4.7223,148.23,148.22,0.033]
[1741375719662,29.97051663,148.25,148.22,0.033]
[1741375719983,4.7221,148.24,148.22,0.033]
[1741375720476,34.69261663,148.24,148.22,0.033]
[1741375721077,4.7221,148.24,148.22,0.033]
[1741375721378,34.69261663,148.24,148.22,0.033]
[1741375721676,34.69231663,148.25,148.22,0.033]
[1741375722277,46.49661663,148.25,148.22,0.033]
[1741375723254,29.97051663,148.24,148.22,0.033]
[1741375723771,41.77481663,148.25,148.22,0.033]
[1741375723958,11.8043,148.25,148.22,0.033]
[1741375724143,41.77481663,148.25,148.22,0.033]
[1741375724945,4.7214,148.26,148.22,0.033]
[1741375725777,4.7214,148.26,148.22,30.00351663]
[1741375725979,4.7214,148.26,148.22,0.033]
[1741375727584,34.69191663,148.26,148.22,0.033]
[1741375728176,4.7214,148.26,148.22,0.033]
[1741375730463,4.7511,148.27,148.22,0.033]
[1741375730671,35.23712771,148.27,148.22,0.033]
[1741375730877,18.68332771,148.26,148.22,0.033]
[1741375731059,16.5538,148.27,148.22,0.033]
[1741375731263,18.68332771,148.26,148.22,0.033]
[1741375731464,11.8327,148.27,148.22,0.033]
[1741375731665,18.68332771,148.26,148.22,0.033]
[1741375731965,30.51602771,148.27,148.22,0.033]
[1741375732163,11.8327,148.27,148.22,0.033]
[1741375732386,18.71332771,148.27,148.22,0.033]
[1741375732565,18.68332771,148.25,148.22,0.033]
[1741375732892,18.68332771,148.26,148.22,0.033]
[1741375733355,18.68332771,148.25,148.22,0.033]
[1741375733978,5.3966,148.24,148.22,0.033]
[1741375734172,18.68332771,148.26,148.22,0.033]
[1741375734382,5.3964,148.25,148.22,0.033]
[1741375734790,24.07932771,148.26,148.22,0.033]
[1741375735385,18.71332771,148.27,148.22,0.033]
[1741375735685,5.4256,148.27,148.22,0.033]
[1741375735864,24.10892771,148.27,148.22,0.033]
[1741375736060,18.68332771,148.26,148.22,0.033]
[1741375736986,18.68332771,148.25,148.22,0.033]
[1741375737291,18.68332771,148.24,148.22,0.033]
[1741375737671,18.68332771,148.25,148.22,0.033]
[1741375737880,18.68332771,148.24,148.22,0.033]
[1741375738081,5.397,148.23,148.22,0.033]
[1741375739992,24.08032771,148.23,148.22,0.033]
[1741375740491,5.397,148.23,148.22,0.033]
[1741375740793,24.08032771,148.23,148.22,0.033]
[1741375741193,42.72997657,148.23,148.22,0.033]
[1741375741508,5.397,148.23,148.22,0.033]
[1741375741709,8.14,148.25,148.22,0.033]
[1741375741915,31.54512771,148.25,148.22,0.033]
[1741375742208,12.8618,148.25,148.22,0.033]
[1741375742381,18.68332771,148.23,148.22,0.033]
[1741375743399,18.68332771,148.24,148.22,0.033]
[1741375743979,43.34942771,148.25,148.22,0.033]
[1741375744187,31.54512771,148.25,148.22,0.033]
[1741375744800,12.8618,148.25,148.22,0.033]
[1741375745000,18.68332771,148.24,148.22,0.033]
[1741375745397,18.68332771,148.23,148.22,0.033]
[1741375746390,18.68332771,148.24,148.22,0.033]
[1741375747611,43.34942771,148.25,148.22,0.033]
[1741375748009,18.68332771,148.24,148.22,0.033]
[1741375748206,4.7223,148.23,148.22,0.033]
[1741375748899,23.40562771,148.23,148.22,0.033]
[1741375749109,4.7223,148.23,148.22,0.033]
[1741375750115,31.54512771,148.25,148.22,0.033]
[1741375750297,18.68332771,148.24,148.22,0.033]
[1741375751405,18.68332771,148.23,148.22,0.033]
[1741375751817,18.68332771,148.23,148.16,8.9074]
[1741375751983,18.68332771,148.21,148.16,8.9074]
[1741375752510,4.7233,148.2,148.16,8.9074]
[1741375753813,4.723,148.21,148.16,8.9074]
[1741375754110,23.40632771,148.21,148.16,8.9074]
[1741375754293,23.40632771,148.21,148.12,8.6024]
[1741375754294,18.68332771,148.17,148.12,8.6024]
[1741375754491,18.68332771,148.16,148.12,0.033]
[1741375754697,18.68332771,148.17,148.16,0.033]
[1741375754899,18.68332771,148.19,148.16,0.033]
[1741375755098,34.89863221,148.24,148.16,0.033]
[1741375755099,11.8059,148.24,148.16,0.033]
[1741375755418,18.68332771,148.26,148.2,18.68332771]
[1741375755713,18.68332771,148.24,148.18,23.07752771]
[1741375755894,18.68332771,148.23,148.18,4.3942]
[1741375756094,18.68332771,148.24,148.18,4.3942]
[1741375756314,18.68332771,148.23,148.18,4.3942]
[1741375757108,18.68332771,148.24,148.18,23.07752771]
[1741375757798,18.68332771,148.23,148.18,4.3942]
[1741375759652,18.68332771,148.21,148.17,9.2263]
[1741375760415,4.7233,148.2,148.17,9.2263]
[1741375760613,4.7233,148.2,148.16,0.033]
[1741375761701,4.7233,148.2,148.16,18.71632771]
[1741375762500,4.723,148.21,148.16,0.033]
[1741375763199,4.723,148.21,148.16,18.71632771]
[1741375763399,4.7227,148.22,148.16,0.033]
[1741375763598,18.68332771,148.23,148.17,18.68332771]
[1741375764010,23.40532771,148.24,148.18,18.68332771]
[1741375764307,18.68332771,148.23,148.16,0.033]
[1741375764510,4.7227,148.22,148.16,18.74578298]
[1741375765120,4.7227,148.22,148.17,11.96378298]
[1741375766902,4.7227,148.22,148.16,11.99678298]
[1741375766903,16.68648298,148.22,148.16,11.99678298]
[1741375767100,11.96378298,148.2,148.16,0.033]
[1741375767307,4.7227,148.22,148.16,11.99678298]
[1741375767614,16.68648298,148.22,148.16,11.99678298]
[1741375767915,11.96378298,148.21,148.16,0.033]
[1741375768418,28.49318298,148.22,148.16,0.033]
[1741375769422,4.7227,148.22,148.16,11.99678298]
[1741375769917,11.96378298,148.22,148.16,11.99678298]
[1741375770307,0.03,148.23,148.16,18.74618298]
[1741375770508,0.03,148.23,148.17,11.96378298]
[1741375771017,0.03,148.23,148.16,6.7822]
[1741375771202,0.03,148.23,148.17,11.96378298]
[1741375771807,4.7523,148.23,148.18,11.96378298]
[1741375772009,4.7523,148.23,148.17,11.96378298]
[1741375772397,4.7523,148.23,148.18,11.96378298]
[1741375772598,0.03,148.23,148.19,11.96378298]
[1741375772817,0.03,148.23,148.18,11.96378298]
[1741375773197,0.03,148.23,148.17,11.96378298]
[1741375773794,0.03,148.23,148.17,18.71228298]
[1741375774022,0.03,148.23,148.19,11.96378298]
[1741375774228,0.03,148.23,148.2,11.96378298]
[1741375774607,0.03,148.23,148.21,11.96378298]
[1741375774917,0.03,148.23,148.22,11.96378298]
[1741375775828,0.03,148.23,148.21,11.96378298]
[1741375776408,0.03,148.23,148.22,11.96378298]
[1741375777921,0.03,148.23,148.22,18.71048298]
[1741375778825,0.03,148.23,148.22,22.95508298]
[1741375783235,0.03,148.23,148.22,16.20838298]
[1741375783825,0.03,148.23,148.21,6.7471]
[1741375784014,0.03,148.23,148.22,11.96378298]
[1741375787317,0.03,148.23,148.2,20.32448298]
[1741375787620,0.03,148.23,148.2,11.96378298]
[1741375788028,0.03,148.23,148.18,11.96378298]
[1741375788224,11.99378298,148.23,148.17,11.96378298]
[1741375788428,11.99378298,148.23,148.16,11.99678298]
[1741375789148,5.3977,148.21,148.16,11.99678298]
[1741375789323,5.3977,148.21,148.16,0.033]
[1741375789528,5.3977,148.21,148.16,11.99678298]
[1741375791235,5.3973,148.22,148.16,18.74598298]
[1741375791446,17.36108298,148.22,148.16,18.74598298]
[1741375791818,17.36108298,148.22,148.16,11.99678298]
[1741375792921,17.36108298,148.22,148.16,18.74618298]
[1741375794147,17.36108298,148.22,148.16,11.99678298]
[1741375794747,17.36108298,148.22,148.16,0.033]
[1741375795618,11.96378298,148.21,148.16,0.033]
[1741375795823,11.96378298,148.19,148.16,0.033]
[1741375796031,16.68768298,148.18,148.16,0.033]
[1741375797845,11.96378298,148.17,148.16,0.033]
[1741375798148,16.68808298,148.17,148.16,0.033]
[1741375798442,4.7243,148.17,148.16,0.033]
[1741375798952,4.7241,148.18,148.16,0.033]
[1741375800061,16.68708298,148.2,148.16,0.033]
[1741375800260,20.06378298,148.22,148.16,11.99678298]
[1741375800559,4.7231,148.21,148.17,11.96378298]
[1741375800743,4.7231,148.21,148.16,0.033]
[1741375800744,4.7231,148.21,148.18,11.96378298]
[1741375800925,4.7231,148.21,148.17,11.96378298]
[1741375801551,4.7231,148.21,148.16,11.99678298]
[1741375801756,4.7231,148.21,148.16,0.033]
[1741375801757,16.68688298,148.21,148.16,0.033]
[1741375801951,11.96378298,148.19,148.16,0.033]
[1741375802352,16.68708298,148.2,148.16,0.033]
[1741375802552,4.7233,148.2,148.16,0.033]
[1741375802750,16.68708298,148.2,148.16,0.033]
[1741375802929,4.7233,148.2,148.16,0.033]
[1741375803131,4.7233,148.2,148.17,11.96378298]
[1741375803335,4.7227,148.22,148.18,11.96378298]
[1741375803562,4.7227,148.22,148.17,11.96378298]
[1741375804864,16.68648298,148.22,148.16,0.033]
[1741375805161,11.96378298,148.21,148.16,0.033]
[1741375805538,4.7227,148.22,148.17,11.96378298]
[1741375805738,16.68648298,148.22,148.16,11.99678298]
[1741375805933,11.96378298,148.21,148.16,0.033]
[1741375806159,11.96378298,148.2,148.16,0.033]
[1741375806357,16.68738298,148.19,148.16,0.033]
[1741375807639,16.68718298,148.2,148.16,0.033]
[1741375807973,16.68688298,148.21,148.16,0.033]
[1741375808331,11.96378298,148.2,148.16,0.033]
[1741375809838,4.7236,148.19,148.16,0.033]
[1741375810461,16.68738298,148.19,148.16,0.033]
[1741375810661,4.7236,148.19,148.16,0.033]
[1741375810966,20.04378298,148.21,148.16,0.033]
[1741375811141,24.76688298,148.21,148.16,0.033]
[1741375812060,11.96378298,148.19,148.16,0.033]
[1741375813938,4.7239,148.18,148.16,0.033]
[1741375814252,16.68768298,148.18,148.16,0.033]
[1741375814457,4.7239,148.18,148.16,0.033]
[1741375814839,16.68768298,148.18,148.16,0.033]
[1741375815240,4.7239,148.18,148.16,0.033]
[1741375815750,16.68768298,148.18,148.16,0.033]
[1741375816443,4.7239,148.18,148.16,0.033]
[1741375816645,11.96378298,148.2,148.16,0.033]
[1741375816846,8.08,148.21,148.16,0.033]
[1741375817035,24.76688298,148.21,148.16,0.033]
[1741375817442,11.96378298,148.2,148.16,0.033]
[1741375818257,16.68718298,148.2,148.16,0.033]
[1741375819462,11.96378298,148.21,148.16,0.033]
[1741375819683,11.96378298,148.2,148.16,0.033]
[1741375820363,11.96378298,148.21,148.16,0.033]
[1741375820554,0.03,148.22,148.16,11.99678298]
[1741375820738,11.99378298,148.22,148.16,11.99678298]
[1741375821061,11.99378298,148.22,148.16,0.033]
[1741375821268,11.96378298,148.2,148.16,0.033]
[1741375821642,16.68728298,148.2,148.16,0.033]
[1741375822239,4.7235,148.2,148.16,0.033]
[1741375822654,11.96378298,148.21,148.16,0.033]
[1741375822876,0.03,148.22,148.19,11.96378298]
[1741375823039,0.03,148.22,148.2,11.96378298]
[1741375823240,0.03,148.22,148.18,24.41338298]
[1741375823539,4.7527,148.22,148.18,12.4496]
[1741375823843,0.03,148.22,148.18,12.4496]
[1741375824043,0.03,148.22,148.19,11.96378298]
[1741375825182,0.03,148.22,148.21,11.96378298]
[1741375825678,0.03,148.22,148.21,18.71088298]
[1741375826179,0.03,148.22,148.2,11.96378298]
[1741375826352,0.03,148.22,148.19,11.96378298]
[1741375827372,0.03,148.22,148.18,24.41338298]
[1741375827957,0.03,148.22,148.19,11.96378298]
[1741375829755,0.03,148.22,148.2,11.96378298]
[1741375829955,0.03,148.22,148.19,6.748]
[1741375829956,0.03,148.22,148.21,11.96378298]
[1741375830350,0.03,148.22,148.19,11.96378298]
[1741375830852,0.03,148.22,148.18,24.41338298]
[1741375831254,0.03,148.22,148.19,11.96378298]
[1741375832888,0.03,148.22,148.19,18.71158298]
[1741375833687,0.03,148.22,148.21,11.96378298]
[1741375834184,0.03,148.22,148.21,30.61343184]
[1741375834889,0.03,148.22,148.21,37.36053184]
[1741375835979,0.03,148.22,148.21,18.71088298]
[1741375836394,0.03,148.22,148.2,6.7474]
[1741375836694,0.03,148.22,148.18,12.4496]
[1741375836891,0.03,148.22,148.17,6.7489]
[1741375837062,0.03,148.22,148.19,11.96378298]
[1741375837263,0.03,148.22,148.21,11.96378298]
[1741375838994,0.03,148.22,148.21,18.71088298]
[1741375840893,0.03,148.22,148.21,50.39263184]
[1741375841102,0.0001,148.22,148.21,50.39263184]
[1741375841386,0.03,148.23,148.21,50.39263184]
[1741375841593,0.0001,148.23,148.22,39.68495188]
[1741375842287,0.0001,148.23,148.22,20.02378298]
[1741375842797,0.0001,148.23,148.22,26.77048298]
[1741375844582,0.0001,148.23,148.22,11.96378298]
[1741375844764,0.0001,148.23,148.2,11.96378298]
[1741375845494,0.0001,148.23,148.21,11.96378298]
[1741375846993,0.0001,148.23,148.21,18.71088298]
[1741375847296,0.0001,148.23,148.21,11.96378298]
[1741375848301,0.0001,148.23,148.22,11.96378298]
[1741375849295,0.0001,148.23,148.2,18.71138298]
[1741375849467,0.0001,148.23,148.2,11.96378298]
[1741375850504,0.0001,148.23,148.21,11.96378298]
[1741375850687,0.0001,148.23,148.19,6.7478]
[1741375850688,0.0001,148.23,148.22,11.96378298]
[1741375851295,0.0001,148.23,148.21,11.96378298]
[1741375851671,0.0001,148.23,148.2,11.96378298]
[1741375852072,0.0001,148.23,148.22,11.96378298]
[1741375852773,0.0001,148.23,148.21,18.64964886]
[1741375853184,0.0001,148.23,148.22,11.96378298]
[1741375853388,0.0001,148.23,148.22,18.71048298]
[1741375856383,0.0001,148.23,148.22,19.72202493]
[1741375856708,0.0001,148.23,148.22,27.76202493]
[1741375856906,0.0001,148.23,148.22,36.00802493]
[1741375857092,0.0001,148.23,148.22,54.65767379]
[1741375857686,0.0001,148.23,148.22,34.99648298]
[1741375858815,0.0001,148.23,148.22,14.7867]
[1741375859016,0.0001,148.23,148.22,26.75048298]
[1741375860518,0.0001,148.23,148.22,45.40013184]
[1741375860698,0.03,148.27,148.22,62.26693184]
[1741375860889,0.03,148.27,148.26,11.96378298]
[1741375861418,0.03,148.27,148.22,31.6535]
[1741375861596,0.03,148.27,148.24,11.96378298]
[1741375862113,0.03,148.27,148.26,6.7449]
[1741375862294,0.03,148.27,148.26,18.70868298]
[1741375862688,0.0001,148.27,148.26,18.70868298]
[1741375862893,0.0001,148.27,148.26,85.21346376]
[1741375863108,0.03,148.31,148.27,18.64964886]
[1741375863421,0.03,148.34,148.31,22.77674886]
[1741375863612,0.03,148.34,148.33,11.96378298]
[1741375864112,0.03,148.34,148.33,18.70548298]
[1741375864309,0.03,148.34,148.33,6.7417]
[1741375865093,0.03,148.34,148.33,18.70548298]
[1741375865716,0.03,148.34,148.33,6.7417]
[1741375865894,0.03,148.34,148.31,18.70618298]
[1741375866294,0.03,148.34,148.3,6.743]
[1741375866715,16.69006575,148.35,148.3,6.743]
[1741375867601,18.66006575,148.36,148.3,18.66006575]
[1741375867803,18.66006575,148.36,148.28,6.7439]
[1741375867804,18.69006575,148.37,148.31,18.66006575]
[1741375867994,18.69006575,148.37,148.35,18.66006575]
[1741375867995,0.03,148.37,148.35,18.66006575]
[1741375868196,0.03,148.37,148.36,18.66006575]
[1741375868413,0.03,148.37,148.35,18.66006575]
[1741375869812,0.03,148.37,148.34,25.40106575]
[1741375870220,0.03,148.37,148.35,18.66006575]
[1741375870828,0.03,148.37,148.36,18.66006575]
[1741375870988,0.03,148.38,148.36,18.66006575]
[1741375871200,0.03,148.38,148.37,19.67062195]
[1741375871595,0.03,148.38,148.37,25.39996575]
[1741375871898,0.03,148.38,148.35,18.66006575]
[1741375872122,0.03,148.38,148.34,25.40116575]
[1741375872297,0.03,148.38,148.36,18.66006575]
[1741375872497,0.03,148.38,148.35,18.66006575]
[1741375872917,0.03,148.38,148.36,18.66006575]
[1741375874327,0.03,148.38,148.37,18.66006575]
[1741375874934,0.03,148.38,148.36,18.66006575]
[1741375875102,0.03,148.38,148.33,96.7616]
[1741375875303,18.66006575,148.37,148.3,3.9886]
[1741375875526,0.03,148.38,148.33,18.66006575]
[1741375875718,0.03,148.38,148.34,18.66006575]
[1741375876123,18.66006575,148.36,148.29,6.7434]
[1741375876315,18.66006575,148.35,148.29,18.66006575]
[1741375876636,0.03,148.38,148.31,18.66006575]
[1741375876809,18.66006575,148.37,148.31,18.66006575]
[1741375877312,18.66006575,148.36,148.3,18.66006575]
[1741375877734,5.3926,148.35,148.3,18.66006575]
[1741375878232,18.66006575,148.31,148.25,0.033]
[1741375878403,18.66006575,148.32,148.26,18.66006575]
[1741375878600,4.0363,148.33,148.28,18.66006575]
[1741375878800,5.3926,148.35,148.25,0.033]
[1741375879008,18.66006575,148.3,148.25,0.033]
[1741375879214,18.66006575,148.29,148.25,0.033]
[1741375879440,18.66006575,148.28,148.25,0.033]
[1741375879757,5.3955,148.27,148.25,0.033]
[1741375879926,24.05526575,148.28,148.25,0.033]
[1741375880704,18.66006575,148.26,148.25,0.033]
[1741375881106,37.3201315,148.26,148.25,0.033]
[1741375881547,37.3201315,148.26,148.18,0.033]
[1741375881705,18.66006575,148.19,148.18,0.033]
[1741375882035,46.8513315,148.19,148.12,0.033]
[1741375882331,18.64964886,148.18,148.12,0.033]
[1741375882504,28.19126575,148.19,148.12,0.033]
[1741375882705,18.64964886,148.18,148.12,0.033]
[1741375882904,18.64964886,148.18,148.1,0.033]
[1741375882905,18.66006575,148.13,148.1,0.033]
[1741375883122,18.66006575,148.12,148.1,0.033]
[1741375883524,8.0,148.13,148.1,0.033]
[1741375883715,18.66006575,148.12,148.1,0.033]
[1741375884639,29.95071301,148.12,148.1,0.033]
[1741375885427,8.0,148.13,148.07,29.95071301]
[1741375885640,168.07734776,148.17,148.04,6.7548]
[1741375885641,145.98,148.17,148.09,29.95071301]
[1741375885937,29.95071301,148.16,148.1,29.95071301]
[1741375886613,175.93071301,148.17,148.11,29.95071301]
[1741375887139,33.37303381,148.21,148.15,29.95071301]
[1741375887330,3.4223208,148.21,148.1,19.66187014]
[1741375887535,29.95071301,148.17,148.11,29.95071301]
[1741375887732,3.4223208,148.21,148.09,11.8648]
[1741375887733,29.95071301,148.16,148.09,11.8648]
[1741375888039,29.95071301,148.15,148.09,37.95071301]
[1741375888241,29.95071301,148.13,148.07,36.70421301]
[1741375888441,29.95071301,148.09,148.02,6.7558]
[1741375888617,29.95071301,148.1,148.04,29.95071301]
[1741375888814,29.95071301,148.1,148.03,18.64964886]
[1741375889031,29.95071301,148.11,148.05,29.95071301]
[1741375890147,29.95071301,148.13,148.07,29.95071301]
[1741375890328,11.9692,148.2,148.11,29.95071301]
[1741375890523,29.95071301,148.19,148.14,29.95071301]
[1741375891040,29.95071301,148.16,148.07,105.55809455]
[1741375891246,29.95071301,148.16,148.1,29.95071301]
[1741375891417,29.95071301,148.17,148.11,29.95071301]
[1741375891621,8.0,148.23,148.07,145.16574886]
[1741375891622,29.95071301,148.15,148.08,29.95071301]
[1741375891824,29.95071301,148.14,148.08,29.95071301]
[1741375892240,29.95071301,148.12,148.08,6.7528]
[1741375892443,29.95071301,148.13,148.08,6.7528]
[1741375893130,37.95071301,148.17,148.11,29.95071301]
[1741375893347,29.95071301,148.18,148.12,29.95071301]
[1741375893547,8.2526,148.24,148.16,29.95071301]
[1741375893725,38.20331301,148.24,148.18,29.95071301]
[1741375893925,29.95071301,148.24,148.18,29.95071301]
[1741375894156,29.95071301,148.24,148.19,6.748]
[1741375894449,146.06,148.25,148.2,29.95071301]
[1741375894623,29.95071301,148.25,148.19,53.56891301]
[1741375894829,29.95071301,148.28,148.22,29.95071301]
[1741375895646,29.95071301,148.27,148.21,29.95071301]
[1741375895848,29.95071301,148.28,148.22,29.95071301]
[1741375896160,29.95071301,148.33,148.27,29.95071301]
[1741375896332,29.95071301,148.33,148.28,29.95071301]
[1741375896533,29.95071301,148.34,148.28,29.95071301]
[1741375896746,16.7501,148.37,148.3,29.95071301]
[1741375896747,29.95071301,148.36,148.3,29.95071301]
[1741375896931,29.95071301,148.33,148.27,29.95071301]
[1741375897130,29.95071301,148.31,148.25,29.95071301]
[1741375897455,29.95071301,148.29,148.23,29.95071301]
[1741375897750,29.95071301,148.31,148.25,29.95071301]
[1741375898146,29.95071301,148.32,148.26,29.95071301]
[1741375898452,0.03,148.38,148.31,29.95071301]
[1741375898660,0.03,148.38,148.35,29.95071301]
[1741375898833,0.03,148.38,148.3,8.0352]
[1741375899034,0.03,148.38,148.34,29.95071301]
[1741375899235,0.03,148.38,148.35,29.95071301]
[1741375899842,29.98071301,148.38,148.33,29.95071301]
[1741375900157,29.95071301,148.37,148.31,29.95071301]
[1741375900334,0.03,148.38,148.33,29.95071301]
[1741375900542,0.03,148.38,148.34,29.95071301]
[1741375901750,0.03,148.38,148.35,29.95071301]
[1741375902460,0.03,148.38,148.36,29.95071301]
[1741375902756,0.03,148.38,148.37,29.95071301]
[1741375904147,0.03,148.38,148.37,49.61092211]
[1741375904352,0.03,148.38,148.37,56.35082211]
[1741375904654,0.03,148.4,148.37,56.35082211]
[1741375904655,0.03,148.4,148.39,26.94974886]
[1741375904860,0.03,148.4,148.39,95.86140418]
[1741375905440,0.03,148.41,148.4,18.64964886]
[1741375905640,0.03,148.41,148.4,78.55107488]
[1741375906235,0.03,148.41,148.4,85.28957488]
[1741375906536,0.03,148.41,148.4,36.68921301]
[1741375906734,0.03,148.41,148.4,86.29993543]
[1741375906941,0.03,148.41,148.4,56.34922242]
[1741375907164,0.03,148.41,148.4,86.29993543]
[1741375908968,0.03,148.41,148.4,56.34922242]
[1741375909164,0.03,148.41,148.4,86.29993543]
[1741375909561,0.03,148.41,148.4,398.29993543]
[1741375909866,0.03,148.41,148.4,397.28957488]
[1741375910067,0.03,148.49,148.4,397.28957488]
[1741375910068,0.03,148.55,148.46,26.75894886]
[1741375910270,0.03,148.55,148.52,36.68371301]
[1741375910562,3.8463,148.64,148.53,18.64964886]
[1741375910747,35.33331301,148.63,148.57,29.95071301]
[1741375910947,29.95071301,148.6,148.54,18.64964886]
[1741375911155,29.95071301,148.63,148.56,29.95071301]
[1741375911450,29.95071301,148.63,148.57,29.95071301]
[1741375911839,35.33321301,148.63,148.57,29.95071301]
[1741375912039,5.3825,148.63,148.57,29.95071301]
[1741375912277,29.95071301,148.64,148.57,29.95071301]
[1741375912453,35.33281301,148.64,148.57,36.68141301]
[1741375912657,35.33281301,148.64,148.57,29.95071301]
[1741375912957,29.95071301,148.63,148.57,29.95071301]
[1741375913262,17.6121,148.69,148.58,29.95071301]
[1741375913462,5.381,148.67,148.58,48.60036187]
[1741375913669,5.381,148.67,148.58,49.60930129]
[1741375913849,5.382,148.65,148.58,49.60930129]
[1741375914052,5.382,148.65,148.58,48.60036187]
[1741375914465,5.3814,148.66,148.58,55.33066187]
[1741375914865,29.95071301,148.68,148.59,18.64964886]
[1741375915066,5.3792,148.72,148.67,29.95071301]
[1741375915256,0.03,148.74,148.7,29.95071301]
[1741375915570,0.03,148.74,148.72,29.95071301]
[1741375915878,0.03,148.74,148.68,18.64964886]
[1741375915879,5.4086,148.74,148.7,29.95071301]
[1741375916459,29.95071301,148.73,148.67,29.95071301]
[1741375916672,44.55205174,148.73,148.67,44.55205174]
[1741375916878,5.4086,148.74,148.7,44.55205174]
[1741375917764,5.4086,148.74,148.69,44.55205174]
[1741375917981,44.55205174,148.73,148.67,44.55205174]
[1741375918277,49.96065174,148.74,148.68,44.55205174]
[1741375918877,44.55205174,148.73,148.67,44.55205174]
[1741375919057,5.4086,148.74,148.66,18.64964886]
[1741375919058,44.55205174,148.72,148.66,18.64964886]
[1741375919257,44.55205174,148.71,148.65,52.51205174]
[1741375919461,44.55205174,148.7,148.64,44.55205174]
[1741375920284,44.55205174,148.72,148.66,44.55205174]
[1741375920578,5.3795,148.71,148.67,44.55205174]
[1741375920761,49.93155174,148.71,148.65,44.55205174]
[1741375920964,44.55205174,148.7,148.64,44.55205174]
[1741375921160,44.55205174,148.68,148.62,63.2017006]
[1741375921359,44.55205174,148.68,148.62,44.55205174]
[1741375921959,44.55205174,148.66,148.6,63.2017006]
[1741375922272,18.8284,148.71,148.62,44.55205174]
[1741375922481,44.55205174,148.68,148.62,44.55205174]
[1741375922782,5.381,148.67,148.62,44.55205174]
[1741375922976,49.93305174,148.67,148.58,18.64964886]
[1741375923181,49.93305174,148.67,148.61,44.55205174]
[1741375923375,5.381,148.67,148.62,44.55205174]
[1741375923572,49.93265174,148.69,148.63,44.55205174]
[1741375923777,5.3806,148.69,148.64,44.55205174]
[1741375923980,49.93265174,148.69,148.63,44.55205174]
[1741375924179,44.55205174,148.66,148.6,44.55205174]
[1741375924374,44.55205174,148.66,148.5,53.9794]
[1741375924375,44.55205174,148.62,148.56,44.55205174]
[1741375924577,5.3835,148.6,148.54,44.55205174]
[1741375924761,5.3835,148.6,148.55,18.64964886]
[1741375925161,44.55205174,148.56,148.48,6.7348]
[1741375925362,44.55205174,148.51,148.47,1.23161004]
[1741375925562,44.55205174,148.5,148.47,1.23161004]
[1741375925766,44.55205174,148.5,148.43,59.24915174]
[1741375925967,44.55205174,148.51,148.45,44.55205174]
[1741375926169,44.55205174,148.53,148.47,44.55205174]
[1741375926363,7.96,148.54,148.47,44.55205174]
[1741375926567,7.96,148.54,148.44,44.55205174]
[1741375926568,44.55205174,148.5,148.44,44.55205174]
[1741375926786,18.8518,148.53,148.43,7.96]
[1741375926970,18.8518,148.53,148.4,7.7149]
[1741375927369,18.8518,148.53,148.4,14.4533]